bitfinex/quotes_BTCUSD_20241013
["timestamp","ask_amount","ask_price","bid_price","bid_amount"]
[1728799343032,0.07861079,62981.0,62980.0,0.72237686]
[1728799345211,0.08025079,62981.0,62980.0,0.77194344]
[1728799349700,0.08025079,62981.0,62980.0,0.75794344]
[1728799349895,0.08025079,62981.0,62980.0,0.80551908]
[1728799350149,0.08025079,62981.0,62980.0,0.81951908]
[1728799351006,0.08025079,62981.0,62980.0,0.80551908]
[1728799351460,0.08025079,62981.0,62980.0,0.81951908]
[1728799351688,0.08025079,62981.0,62980.0,0.75794344]
[1728799351928,0.00164,62981.0,62980.0,0.94121807]
[1728799352154,0.09704,62981.0,62980.0,0.8433069]
[1728799352617,0.09704,62981.0,62980.0,0.8293069]
[1728799352855,0.09704,62981.0,62980.0,0.8153069]
[1728799353308,0.09704,62981.0,62980.0,0.8293069]
[1728799354029,0.09704,62981.0,62980.0,0.92721807]
[1728799354252,0.09704,62981.0,62980.0,0.95521807]
[1728799354737,0.09704,62981.0,62980.0,0.96921966]
[1728799354957,0.09704,62981.0,62980.0,0.85730849]
[1728799355421,0.09266503,62981.0,62980.0,0.85730849]
[1728799355647,0.09266503,62981.0,62980.0,0.84330849]
[1728799356162,0.09266503,62981.0,62980.0,0.82930849]
[1728799356394,0.06411575,62981.0,62980.0,0.75794344]
[1728799357039,0.06411575,62981.0,62980.0,0.85585461]
[1728799357264,0.06575575,62981.0,62980.0,0.75794344]
[1728799357713,0.06575575,62981.0,62980.0,0.76004591]
[1728799357950,0.06575575,62981.0,62980.0,0.75795912]
[1728799358363,0.06575575,62981.0,62980.0,0.77195912]
[1728799359079,0.06575575,62981.0,62980.0,0.85732417]
[1728799359302,0.06575575,62981.0,62980.0,0.85734812]
[1728799359525,0.06575575,62981.0,62980.0,0.84334812]
[1728799360027,0.06575575,62981.0,62980.0,0.85734812]
[1728799360704,0.06575575,62981.0,62980.0,0.78595912]
[1728799361595,0.06575575,62981.0,62980.0,0.78596014]
[1728799362498,0.06575575,62981.0,62980.0,0.88114548]
[1728799362963,0.06575575,62981.0,62980.0,0.86714548]
[1728799363218,0.06575575,62981.0,62980.0,0.99305665]
[1728799363870,0.06575575,62981.0,62980.0,0.88114548]
[1728799364123,0.06575575,62981.0,62980.0,0.85320108]
[1728799364343,0.06575575,62981.0,62980.0,0.86720108]
[1728799365248,0.06575575,62981.0,62980.0,0.97911225]
[1728799365872,0.06575575,62981.0,62980.0,0.86721952]
[1728799366337,0.06575575,62981.0,62980.0,0.89101132]
[1728799367410,0.06575575,62981.0,62980.0,0.77196014]
[1728799367864,0.06575575,62981.0,62980.0,0.89103927]
[1728799368014,0.06575575,62981.0,62980.0,0.77196014]
[1728799368903,0.06575575,62981.0,62980.0,0.77195973]
[1728799373029,0.06575575,62981.0,62980.0,0.77195994]
[1728799376406,0.06575575,62981.0,62980.0,0.76004591]
[1728799376614,0.06575575,62981.0,62980.0,0.77196056]
[1728799379593,0.06575575,62981.0,62980.0,0.7791948]
[1728799379828,0.06575575,62981.0,62980.0,0.77196056]
[1728799380277,0.06575575,62981.0,62980.0,0.76996056]
[1728799380934,0.06575575,62981.0,62980.0,0.77278056]
[1728799382731,0.06575575,62981.0,62980.0,0.77278374]
[1728799389869,0.06575575,62981.0,62980.0,0.7727819]
[1728799393619,0.06575575,62981.0,62980.0,0.76086591]
[1728799393810,0.06575575,62981.0,62980.0,0.77278207]
[1728799394956,0.06575575,62981.0,62980.0,0.77278192]
[1728799398775,0.06575575,62981.0,62980.0,0.75878192]
[1728799398983,0.06575575,62981.0,62980.0,0.77278192]
[1728799399339,0.06575575,62981.0,62980.0,0.75878192]
[1728799399894,0.06575575,62981.0,62980.0,0.74478192]
[1728799400303,0.06575575,62981.0,62980.0,0.75878192]
[1728799400725,0.06575575,62981.0,62980.0,0.77278192]
[1728799401774,0.06575575,62981.0,62980.0,0.75878192]
[1728799402424,0.06575575,62981.0,62980.0,0.77278192]
[1728799404848,0.06575575,62981.0,62980.0,0.76086591]
[1728799405053,0.06575575,62981.0,62980.0,0.77278212]
[1728799406643,0.06575575,62981.0,62980.0,0.75878212]
[1728799406848,0.06575575,62981.0,62980.0,0.74478212]
[1728799407083,0.06575575,62981.0,62980.0,0.77278212]
[1728799407502,0.06575575,62981.0,62980.0,0.75878212]
[1728799408189,0.06575575,62981.0,62980.0,0.74478212]
[1728799408565,0.06575575,62981.0,62980.0,0.75878212]
[1728799408777,0.06575575,62981.0,62980.0,0.77278196]
[1728799410099,0.06575575,62981.0,62980.0,0.75878196]
[1728799410531,0.06575575,62981.0,62980.0,0.77278196]
[1728799411173,0.06575575,62981.0,62980.0,0.75878196]
[1728799411638,0.0577311,62981.0,62980.0,0.77278196]
[1728799412518,0.0577311,62981.0,62980.0,0.77278184]
[1728799413382,0.0577311,62981.0,62980.0,0.75878184]
[1728799413766,0.0577311,62981.0,62980.0,0.77278206]
[1728799414219,0.0577311,62981.0,62980.0,0.75878206]
[1728799414712,0.0577311,62981.0,62980.0,0.77278206]
[1728799415151,0.00164,62981.0,62980.0,0.77278206]
[1728799416210,0.00164,62981.0,62980.0,0.77278275]
[1728799417343,0.00164,62981.0,62980.0,0.75878275]
[1728799417573,0.00164,62981.0,62980.0,0.77278275]
[1728799417783,0.00164,62981.0,62980.0,0.76086591]
[1728799418237,0.00164,62981.0,62980.0,0.74686591]
[1728799418458,0.00164,62981.0,62980.0,0.76086591]
[1728799418680,0.00164,62981.0,62980.0,0.77278327]
[1728799424974,0.00164,62981.0,62980.0,0.74478327]
[1728799425224,0.00164,62981.0,62980.0,0.77278327]
[1728799426287,0.00164,62981.0,62980.0,0.75878327]
[1728799426954,0.00164,62981.0,62980.0,0.77278327]
[1728799427876,0.00164,62981.0,62980.0,0.77278394]
[1728799438296,0.02650206,62981.0,62980.0,0.77278394]
[1728799438548,0.00164,62981.0,62980.0,0.77278394]
[1728799439434,0.00164,62981.0,62980.0,0.77278289]
[1728799441076,0.00164,62981.0,62980.0,0.77278324]
[1728799442777,0.02650213,62981.0,62980.0,0.77278324]
[1728799443229,0.10084,62984.0,62982.0,0.297615]
[1728799443458,0.10084,62984.0,62982.0,0.66249457]
[1728799443914,0.10084,62984.0,62982.0,0.77440574]
[1728799444785,0.10084,62984.0,62982.0,0.78840574]
[1728799446775,0.10084,62984.0,62982.0,0.80240574]
[1728799447676,0.10084,62984.0,62982.0,0.8024045]
[1728799449276,0.00164,62990.0,62989.0,0.03884]
[1728799449511,0.0499959,62993.0,62992.0,0.32059]
[1728799449746,0.0828,62999.0,62993.0,0.320587]
[1728799449979,0.0828,62999.0,62993.0,0.49371964]
[1728799450450,0.0828,62999.0,62993.0,0.56516692]
[1728799450686,0.0828,62999.0,62993.0,0.49171964]
[1728799450914,0.0828,62999.0,62993.0,0.57916692]
[1728799451138,0.0828,62999.0,62993.0,0.62875263]
[1728799451361,0.0828,62999.0,62993.0,0.54330535]
[1728799451599,0.0828,62999.0,62993.0,0.50771964]
[1728799451838,0.0828,62999.0,62993.0,0.69102229]
[1728799452277,0.0989,62995.0,62993.0,0.69102229]
[1728799452518,0.0989,62995.0,62993.0,0.72658835]
[1728799452754,0.02567832,62994.0,62993.0,0.60563081]
[1728799452990,0.02567832,62994.0,62993.0,0.61963081]
[1728799453448,0.02567832,62994.0,62993.0,0.61763081]
[1728799453672,0.02567832,62994.0,62993.0,0.63363081]
[1728799453945,0.02567832,62994.0,62993.0,0.53072215]
[1728799454176,0.02567832,62994.0,62993.0,0.50481352]
[1728799454401,0.02567832,62994.0,62993.0,0.51670271]
[1728799454628,0.02567832,62994.0,62993.0,0.57827516]
[1728799455086,0.02567832,62994.0,62993.0,0.67618633]
[1728799455316,0.02567832,62994.0,62993.0,0.69018633]
[1728799456072,0.02567832,62994.0,62993.0,0.69016961]
[1728799456526,0.02567832,62994.0,62993.0,0.57825844]
[1728799456977,0.02567832,62994.0,62993.0,0.53070271]
[1728799457213,0.02567832,62994.0,62993.0,0.52869822]
[1728799458350,0.00032,62994.0,62993.0,0.52869822]
[1728799459261,0.00032,62994.0,62993.0,0.57821558]
[1728799459741,0.00032,62994.0,62993.0,0.59228922]
[1728799460880,0.00032,62994.0,62993.0,0.59228761]
[1728799461337,0.0251787,62994.0,62993.0,0.59228761]
[1728799462485,0.0251787,62994.0,62993.0,0.64179827]
[1728799462710,0.0251787,62994.0,62993.0,0.59228761]
[1728799464144,0.0251787,62994.0,62993.0,0.58040452]
[1728799465322,0.0251787,62994.0,62993.0,0.59228727]
[1728799467561,0.0251787,62994.0,62993.0,0.64179809]
[1728799468017,0.0251787,62994.0,62993.0,0.59228727]
[1728799468264,0.00032,62994.0,62993.0,0.59228727]
[1728799468508,0.00032,62994.0,62993.0,0.64179795]
[1728799471375,0.02517871,62994.0,62993.0,0.64179795]
[1728799472499,0.02517871,62994.0,62993.0,0.64180279]
[1728799472714,0.02517871,62994.0,62993.0,0.64180274]
[1728799472958,0.02517871,62994.0,62993.0,0.64380274]
[1728799474518,0.00032,62994.0,62993.0,0.64380274]
[1728799476390,0.00032,62994.0,62993.0,0.64380837]
[1728799477287,0.00032,62994.0,62993.0,0.64462837]
[1728799477707,0.02517868,62994.0,62993.0,0.64462837]
[1728799478113,0.00032,62994.0,62993.0,0.64462837]
[1728799478342,0.00032,62994.0,62993.0,0.75653954]
[1728799478806,0.00032,62994.0,62993.0,0.64462837]
[1728799479023,0.00032,62994.0,62993.0,0.75653954]
[1728799479240,0.00032,62994.0,62993.0,0.75655177]
[1728799479708,0.00032,62994.0,62993.0,0.75455177]
[1728799479933,0.00032,62994.0,62993.0,0.80407807]
[1728799480197,0.00032,62994.0,62993.0,0.6921669]
[1728799481274,0.00032,62994.0,62993.0,0.69217301]
[1728799481499,0.0251777,62994.0,62993.0,0.69217301]
[1728799482575,0.0251777,62994.0,62993.0,0.6446406]
[1728799482782,0.0251777,62994.0,62993.0,0.6426406]
[1728799482942,0.0251777,62994.0,62993.0,0.6446406]
[1728799484416,0.0251777,62994.0,62993.0,0.3542289]
[1728799484662,0.15628701,63006.0,63005.0,0.190547]
[1728799484892,0.20600711,63006.0,63005.0,0.36367959]
[1728799485136,0.00082,63007.0,63005.0,0.20496259]
[1728799485354,0.00082,63007.0,63006.0,0.36367759]
[1728799486902,0.00082,63007.0,63006.0,0.37767759]
[1728799487370,0.00082,63007.0,63006.0,0.39167759]
[1728799487625,0.17452,63007.0,63006.0,0.39167759]
[1728799487851,0.17452,63007.0,63006.0,0.39803659]
[1728799488081,0.19937694,63007.0,63006.0,0.39803659]
[1728799488305,0.17452,63007.0,63006.0,0.39803659]
[1728799490350,0.17452,63007.0,63006.0,0.41431247]
[1728799491971,0.17452,63007.0,63006.0,0.40240389]
[1728799492217,0.17452,63007.0,63006.0,0.41430991]
[1728799492707,0.19937695,63007.0,63006.0,0.41430991]
[1728799492936,0.19937695,63007.0,63006.0,0.42359478]
[1728799493171,0.19937695,63007.0,63006.0,0.40959478]
[1728799493404,0.19937695,63007.0,63006.0,0.42359478]
[1728799493634,0.19937695,63007.0,63006.0,0.40959478]
[1728799493875,0.19937695,63007.0,63006.0,0.39559478]
[1728799494098,0.19937695,63007.0,63006.0,0.42359478]
[1728799494302,0.19937695,63007.0,63006.0,0.40959478]
[1728799494802,0.19937695,63007.0,63006.0,0.42359478]
[1728799497422,0.19937695,63007.0,63006.0,0.44659478]
[1728799498407,0.17452,63007.0,63006.0,0.44659478]
[1728799501589,0.19937721,63007.0,63006.0,0.44659478]
[1728799501879,0.19937721,63007.0,63006.0,0.44741478]
[1728799502347,0.19937721,63007.0,63006.0,0.44741532]
[1728799508474,0.17452,63007.0,63006.0,0.44741532]
[1728799510098,0.17452,63007.0,63006.0,0.43550876]
[1728799510319,0.17452,63007.0,63006.0,0.4474175]
[1728799511420,0.19937711,63007.0,63006.0,0.4474175]
[1728799514197,0.12017711,63007.0,63006.0,0.4474175]
[1728799514660,0.12017711,63007.0,63006.0,0.44741701]
[1728799517259,0.12017711,63007.0,63006.0,0.44742297]
[1728799517498,0.02567711,63007.0,63006.0,0.44742297]
[1728799517748,0.00082,63007.0,63006.0,0.44742297]
[1728799532302,0.02567679,63007.0,63006.0,0.44742297]
[1728799538436,0.00082,63007.0,63006.0,0.44742297]
[1728799546903,0.02567662,63007.0,63006.0,0.44742297]
[1728799547614,0.00082,63007.0,63006.0,0.44742297]
[1728799551965,0.02567691,63007.0,63006.0,0.44742297]
[1728799553363,0.02567691,63007.0,63006.0,0.42442297]
[1728799553612,0.12137691,63007.0,63006.0,0.24307309]
[1728799553863,0.28098419,63007.0,63006.0,0.24307309]
[1728799554093,0.30483224,63007.0,63006.0,0.06993487]
[1728799554317,0.23328808,63007.0,63006.0,0.06993487]
[1728799555015,0.20843117,63007.0,63006.0,0.04193487]
[1728799555238,0.27994691,63007.0,63006.0,0.00082]
[1728799555457,0.27994691,63007.0,63006.0,0.04465]
[1728799555690,0.27994691,63007.0,63006.0,0.03265]
[1728799555915,0.27994691,63007.0,63006.0,0.04365]
[1728799556358,0.27994691,63007.0,63006.0,0.00082]
[1728799557326,0.27994691,63007.0,63006.0,0.04565]
[1728799557560,0.27994691,63007.0,63006.0,0.05365]
[1728799557787,0.27994691,63007.0,63006.0,0.04565]
[1728799558023,0.27994691,63007.0,63006.0,0.03265]
[1728799558299,0.20843117,63007.0,63006.0,0.04565]
[1728799558528,0.20843117,63007.0,63006.0,0.03965]
[1728799558761,0.20843117,63007.0,63006.0,0.04065]
[1728799558956,0.20843117,63007.0,63006.0,0.00082]
[1728799559293,0.20843117,63007.0,63006.0,0.04765]
[1728799560051,0.25607025,63007.0,63006.0,0.04765]
[1728799560269,0.25607025,63007.0,63006.0,0.03865]
[1728799560428,0.25607025,63007.0,63006.0,0.00082]
[1728799560657,0.25605617,63007.0,63006.0,0.04065]
[1728799560890,0.144145,63007.0,63006.0,0.04065]
[1728799561112,0.144145,63007.0,63006.0,0.03265]
[1728799561343,0.144145,63007.0,63006.0,0.03965]
[1728799561564,0.144145,63007.0,63006.0,0.04865]
[1728799562050,0.144145,63007.0,63006.0,0.03965]
[1728799562274,0.09652,63007.0,63006.0,0.206365]
[1728799562498,0.12137799,63007.0,63006.0,0.206365]
[1728799563621,0.12137799,63007.0,63006.0,0.191365]
[1728799563837,0.12137799,63007.0,63006.0,0.199365]
[1728799564064,0.12137799,63007.0,63006.0,0.208365]
[1728799564495,0.12137799,63007.0,63006.0,0.206365]
[1728799564713,0.12137799,63007.0,63006.0,0.199365]
[1728799564933,0.09652,63007.0,63006.0,0.207365]
[1728799565143,0.09652,63007.0,63006.0,0.199365]
[1728799565592,0.09652,63007.0,63006.0,0.208365]
[1728799566486,0.09652,63007.0,63006.0,0.200365]
[1728799566949,0.09652,63007.0,63006.0,0.207365]
[1728799567170,0.09652,63007.0,63006.0,0.200365]
[1728799567387,0.09652,63007.0,63006.0,0.208365]
[1728799576650,0.00082,63007.0,63006.0,0.36958901]
[1728799577091,0.02567766,63007.0,63006.0,0.36958901]
[1728799577323,0.02567766,63007.0,63006.0,0.38149764]
[1728799578277,0.00082,63007.0,63006.0,0.38149764]
[1728799578796,0.00082,63007.0,63006.0,0.47909764]
[1728799579736,0.00082,63007.0,63006.0,0.57819764]
[1728799582050,0.02567651,63007.0,63006.0,0.57819764]
[1728799585208,0.00082,63007.0,63006.0,0.57819764]
[1728799587535,0.00082,63007.0,63006.0,0.58455664]
[1728799587770,0.00082,63007.0,63006.0,0.57264801]
[1728799588013,0.00082,63007.0,63006.0,0.58455679]
[1728799588229,0.00082,63007.0,63006.0,0.48695679]
[1728799588470,0.00082,63007.0,63006.0,0.41085679]
[1728799591444,0.00082,63007.0,63006.0,0.39894801]
[1728799591687,0.00082,63007.0,63006.0,0.41085771]
[1728799592864,0.02567658,63007.0,63006.0,0.41085771]
[1728799604047,0.00082,63007.0,63006.0,0.41085771]
[1728799605615,0.0256767,63007.0,63006.0,0.41085771]
[1728799606480,0.0256767,63007.0,63006.0,0.39894801]
[1728799606667,0.0256767,63007.0,63006.0,0.4108687]
[1728799607098,0.00082,63007.0,63006.0,0.4108687]
[1728799607985,0.00082,63007.0,63006.0,0.39894801]
[1728799608168,0.00082,63007.0,63006.0,0.41087088]
[1728799610194,0.00082,63007.0,63006.0,0.39894801]
[1728799610381,0.00082,63007.0,63006.0,0.41087224]
[1728799611324,0.02567675,63007.0,63006.0,0.41087224]
[1728799613919,0.02567675,63007.0,63006.0,0.39894801]
[1728799614165,0.02567675,63007.0,63006.0,0.41087243]
[1728799614686,0.02567675,63007.0,63006.0,0.39894801]
[1728799614901,0.02567675,63007.0,63006.0,0.41087257]
[1728799617734,0.02567675,63007.0,63006.0,0.41087382]
[1728799618370,0.00082,63007.0,63006.0,0.41087382]
[1728799621032,0.00082,63007.0,63006.0,0.39894801]
[1728799621248,0.00082,63007.0,63006.0,0.41087382]
[1728799622116,0.00017837,63008.0,63007.0,0.190542]
[1728799622393,0.00017837,63008.0,63007.0,0.36369182]
[1728799623219,0.00017837,63008.0,63007.0,0.36369181]
[1728799623639,0.00017837,63008.0,63007.0,0.37869181]
[1728799624048,0.00017837,63008.0,63007.0,0.37869182]
[1728799624264,0.00017837,63008.0,63007.0,0.36369182]
[1728799624485,0.00017837,63008.0,63007.0,0.37169182]
[1728799624684,0.00017837,63008.0,63007.0,0.37869182]
[1728799624928,0.00017837,63008.0,63007.0,0.36369182]
[1728799625138,0.00017837,63008.0,63007.0,0.37069182]
[1728799626374,0.04259386,63011.0,63007.0,0.21997982]
[1728799626601,0.04259386,63011.0,63010.0,0.03183]
[1728799626852,0.04259386,63011.0,63010.0,0.20497982]
[1728799627799,0.04259386,63011.0,63010.0,0.20497975]
[1728799628037,0.04259386,63011.0,63010.0,0.21797975]
[1728799628275,0.04259386,63011.0,63010.0,0.21197975]
[1728799628524,0.04259386,63011.0,63010.0,0.21897975]
[1728799629019,0.04659386,63011.0,63010.0,0.21897975]
[1728799629989,0.04659386,63011.0,63010.0,0.21197975]
[1728799630236,0.004,63011.0,63010.0,0.21297975]
[1728799630470,0.004,63011.0,63010.0,0.21997975]
[1728799630987,0.004,63011.0,63010.0,0.22697975]
[1728799635244,0.004,63011.0,63010.0,0.21505401]
[1728799635472,0.004,63011.0,63010.0,0.22697965]
[1728799637117,0.004,63011.0,63010.0,0.21505401]
[1728799637971,0.004,63011.0,63010.0,0.22697964]
[1728799638657,0.004,63011.0,63010.0,0.21505401]
[1728799639741,0.004,63011.0,63010.0,0.22697964]
[1728799640180,0.00564,63011.0,63010.0,0.22697964]
[1728799641018,0.07710233,63011.0,63010.0,0.22697964]
[1728799641236,0.00564,63011.0,63010.0,0.22697964]
[1728799643630,0.05327426,63011.0,63010.0,0.22697964]
[1728799643828,0.05327578,63011.0,63010.0,0.22697964]
[1728799644056,0.00564,63011.0,63010.0,0.22697964]
[1728799644681,0.164342,63011.0,63010.0,0.22697964]
[1728799644888,0.169342,63011.0,63010.0,0.21505401]
[1728799645482,0.46432709,63011.0,63010.0,0.21505401]
[1728799645828,0.34521312,63011.0,63010.0,0.21505401]
[1728799646649,0.44046755,63011.0,63010.0,0.21505401]
[1728799649432,0.44037681,63011.0,63010.0,0.21505401]
[1728799650470,0.34513328,63011.0,63010.0,0.21505401]
[1728799651108,0.34513328,63011.0,63010.0,0.21587401]
[1728799651757,0.3493744,63011.0,63010.0,0.21587401]
[1728799653539,0.17358312,63011.0,63010.0,0.21587401]
[1728799653789,0.34933186,63011.0,63010.0,0.21587401]
[1728799654226,0.17358312,63011.0,63010.0,0.21587401]
[1728799658201,0.24499038,63011.0,63010.0,0.21587401]
[1728799658401,0.17358312,63011.0,63010.0,0.21587401]
[1728799658844,0.24498894,63011.0,63010.0,0.21587401]
[1728799661730,0.24498557,63011.0,63010.0,0.21587401]
[1728799664164,0.24498415,63011.0,63010.0,0.21587401]
[1728799667231,0.23998415,63011.0,63010.0,0.21587401]
[1728799667461,0.24498415,63011.0,63010.0,0.21587401]
[1728799669053,0.17358312,63011.0,63010.0,0.21587401]
[1728799669501,0.24498348,63011.0,63010.0,0.21587401]
[1728799671746,0.17358312,63011.0,63010.0,0.21587401]
[1728799672368,0.24498491,63011.0,63010.0,0.21587401]
[1728799673976,0.24498656,63011.0,63010.0,0.21587401]
[1728799677740,0.24499185,63011.0,63010.0,0.21587401]
[1728799678183,0.17358312,63011.0,63010.0,0.21587401]
[1728799682668,0.34933977,63011.0,63010.0,0.21587401]
[1728799685112,0.34433977,63011.0,63010.0,0.21587401]
[1728799685338,0.34933977,63011.0,63010.0,0.21587401]
[1728799685577,0.44456069,63011.0,63010.0,0.21587401]
[1728799686966,0.44462218,63011.0,63010.0,0.21587401]
[1728799687442,0.28592018,63011.0,63010.0,0.21587401]
[1728799688413,0.28092018,63011.0,63010.0,0.21587401]
[1728799688662,0.28592018,63011.0,63010.0,0.21587401]
[1728799690765,0.19067516,63011.0,63010.0,0.21587401]
[1728799691709,0.28604481,63011.0,63010.0,0.2277995]
[1728799691929,0.28604481,63011.0,63010.0,0.21587401]
[1728799692170,0.28604481,63011.0,63010.0,0.2277995]
[1728799692645,0.19075515,63011.0,63010.0,0.21587401]
[1728799693099,0.19075515,63011.0,63010.0,0.29587401]
[1728799693559,0.18575515,63011.0,63010.0,0.29587401]
[1728799693802,0.19075515,63011.0,63010.0,0.29587401]
[1728799695672,0.01488112,63011.0,63010.0,0.29587401]
[1728799696643,0.11017078,63011.0,63010.0,0.29587401]
[1728799696867,0.28600115,63011.0,63010.0,0.21587401]
[1728799697357,0.19071149,63011.0,63010.0,0.21587401]
[1728799697589,0.28600115,63011.0,63010.0,0.21587401]
[1728799698542,0.19071149,63011.0,63010.0,0.21587401]
[1728799699535,0.18571149,63011.0,63010.0,0.21587401]
[1728799699768,0.28600115,63011.0,63010.0,0.21587401]
[1728799700435,0.19071149,63011.0,63010.0,0.21587401]
[1728799701088,0.34941349,63011.0,63010.0,0.21587401]
[1728799701579,0.17358312,63011.0,63010.0,0.21587401]
[1728799701812,0.34938139,63011.0,63010.0,0.21587401]
[1728799702477,0.17358312,63011.0,63010.0,0.21587401]
[1728799703141,0.19067729,63011.0,63010.0,0.21587401]
[1728799703385,0.34937929,63011.0,63010.0,0.21587401]
[1728799703621,0.44466895,63011.0,63010.0,0.21587401]
[1728799705186,0.34937929,63011.0,63010.0,0.21587401]
[1728799705946,0.34938198,63011.0,63010.0,0.21587401]
[1728799711121,0.34438198,63011.0,63010.0,0.21587401]
[1728799711358,0.34938198,63011.0,63010.0,0.21587401]
[1728799715590,0.17358312,63011.0,63010.0,0.21587401]
[1728799715825,0.44470774,63011.0,63010.0,0.21587401]
[1728799718781,0.34943265,63011.0,63010.0,0.21587401]
[1728799719307,0.44470774,63011.0,63010.0,0.21587401]
[1728799722432,0.17358312,63011.0,63010.0,0.21587401]
[1728799722652,0.34943853,63011.0,63010.0,0.21587401]
[1728799722853,0.44463062,63011.0,63010.0,0.21587401]
[1728799725298,0.01479812,63011.0,63010.0,0.21587401]
[1728799725510,0.28592601,63011.0,63010.0,0.21587401]
[1728799725932,0.19064977,63011.0,63010.0,0.21587401]
[1728799726351,0.18564977,63011.0,63010.0,0.21587401]
[1728799726594,0.19064977,63011.0,63010.0,0.21587401]
[1728799728999,0.28593199,63011.0,63010.0,0.21587401]
[1728799729134,0.19064977,63011.0,63010.0,0.21587401]
[1728799730007,0.34935177,63011.0,63010.0,0.21587401]
[1728799730227,0.34936329,63011.0,63010.0,0.21587401]
[1728799734132,0.19066129,63011.0,63010.0,0.21587401]
[1728799734606,0.34936329,63011.0,63010.0,0.21587401]
[1728799739854,0.34937257,63011.0,63010.0,0.21587401]
[1728799740459,0.34936737,63011.0,63010.0,0.21587401]
[1728799743911,0.46847323,63011.0,63010.0,0.21587401]
[1728799744164,0.34936737,63011.0,63010.0,0.21587401]
[1728799757665,0.34936067,63011.0,63010.0,0.21587401]
[1728799766722,0.46846199,63011.0,63010.0,0.21587401]
[1728799770612,0.34936067,63011.0,63010.0,0.21587401]
[1728799772760,0.34936067,63011.0,63010.0,0.05465]
[1728799773168,1.61336067,63011.0,63010.0,0.05465]
[1728799773834,1.72527184,63011.0,63010.0,0.05465]
[1728799779704,1.84432102,63011.0,63010.0,0.05465]
[1728799780494,1.72527184,63011.0,63010.0,0.05465]
[1728799780704,1.84431681,63011.0,63010.0,0.05465]
[1728799782071,1.84422995,63011.0,63010.0,0.05465]
[1728799784391,1.72518645,63011.0,63010.0,0.05465]
[1728799786893,1.72517938,63011.0,63010.0,0.05465]
[1728799791795,1.72517369,63011.0,63010.0,0.05465]
[1728799802679,1.54941129,63011.0,63010.0,0.05465]
[1728799804413,1.72512656,63011.0,63010.0,0.05465]
[1728799805386,1.61321539,63011.0,63010.0,0.05465]
[1728799805869,1.27879812,63011.0,63010.0,0.05465]
[1728799807333,1.27879812,63011.0,63010.0,0.37457801]
[1728799807529,1.27879812,63011.0,63010.0,0.38650308]
[1728799808897,1.27879812,63011.0,63010.0,0.37457801]
[1728799809391,1.27879812,63011.0,63010.0,0.38649868]
[1728799809739,1.27879812,63011.0,63010.0,0.37457801]
[1728799810770,1.27879812,63011.0,63010.0,0.38649759]
[1728799811263,1.27879812,63011.0,63010.0,0.37457801]
[1728799811727,0.01479812,63011.0,63010.0,0.37457801]
[1728799815272,0.28578161,63011.0,63010.0,0.37457801]
[1728799816565,0.1905744,63011.0,63010.0,0.37457801]
[1728799816791,0.11003387,63011.0,63010.0,0.37457801]
[1728799816999,0.1905744,63011.0,63010.0,0.37457801]
[1728799817208,0.11003493,63011.0,63010.0,0.37457801]
[1728799817405,0.28581121,63011.0,63010.0,0.37457801]
[1728799817544,0.1905744,63011.0,63010.0,0.37457801]
[1728799817974,0.19057593,63011.0,63010.0,0.37457801]
[1728799819977,0.28081411,63011.0,63010.0,0.37457801]
[1728799820340,0.00979812,63011.0,63010.0,0.56399524]
[1728799820580,0.00979812,63011.0,63010.0,0.56399518]
[1728799820794,0.00979812,63011.0,63010.0,0.55207801]
[1728799821034,0.00979812,63011.0,63010.0,0.56399432]
[1728799821286,0.00979812,63011.0,63010.0,0.79890549]
[1728799821728,0.005557,63011.0,63010.0,0.68699432]
[1728799821975,0.005557,63011.0,63010.0,0.79890549]
[1728799822169,0.005557,63011.0,63010.0,0.79090549]
[1728799822412,0.005557,63011.0,63010.0,0.69299432]
[1728799823306,0.005557,63011.0,63010.0,0.67899432]
[1728799823531,0.005557,63011.0,63010.0,0.69299432]
[1728799823742,0.005557,63011.0,63010.0,0.67899432]
[1728799824003,0.005557,63011.0,63010.0,0.69299432]
[1728799825059,0.005557,63011.0,63010.0,0.68107801]
[1728799825322,0.005557,63011.0,63010.0,0.6929751]
[1728799825985,0.005557,63011.0,63010.0,0.80488627]
[1728799829230,0.005557,63011.0,63010.0,0.66707801]
[1728799830047,0.005557,63011.0,63010.0,0.68107801]
[1728799830458,0.005557,63011.0,63010.0,0.69296381]
[1728799831263,0.005557,63011.0,63010.0,0.67896381]
[1728799831490,0.005557,63011.0,63010.0,0.69296381]
[1728799831943,0.005557,63011.0,63010.0,0.69932181]
[1728799832399,0.005557,63011.0,63010.0,0.68532181]
[1728799832627,0.005557,63011.0,63010.0,0.69932181]
[1728799832882,0.005557,63011.0,63010.0,0.68532181]
[1728799833090,0.005557,63011.0,63010.0,0.69932181]
[1728799833301,0.005557,63011.0,63010.0,0.71332181]
[1728799834616,0.005557,63011.0,63010.0,0.7133199]
[1728799836957,0.005557,63011.0,63010.0,0.6713199]
[1728799837383,0.005557,63011.0,63010.0,0.6853199]
[1728799837782,0.005557,63011.0,63010.0,0.7133199]
[1728799839019,0.005557,63011.0,63010.0,0.6993199]
[1728799839513,0.005557,63011.0,63010.0,0.7133199]
[1728799845905,0.005557,63011.0,63010.0,0.6993199]
[1728799846120,0.005557,63011.0,63010.0,0.6853199]
[1728799846328,0.005557,63011.0,63010.0,0.6993199]
[1728799846541,0.005557,63011.0,63010.0,0.6853199]
[1728799846965,0.005557,63011.0,63010.0,0.6993199]
[1728799852996,0.005557,63011.0,63010.0,0.6853199]
[1728799854048,0.005557,63011.0,63010.0,0.6993199]
[1728799855169,0.005557,63011.0,63010.0,0.6853199]
[1728799856075,0.005557,63011.0,63010.0,0.6713199]
[1728799856290,0.005557,63011.0,63010.0,0.6993199]
[1728799856499,0.005557,63011.0,63010.0,0.6853199]
[1728799857143,0.005557,63011.0,63010.0,0.6993199]
[1728799858396,0.005557,63011.0,63010.0,0.6853199]
[1728799859468,0.005557,63011.0,63010.0,0.6993199]
[1728799859901,0.005557,63011.0,63010.0,0.6853199]
[1728799860101,0.005557,63011.0,63010.0,0.69935755]
[1728799860315,0.005557,63011.0,63010.0,0.68535755]
[1728799861439,0.005557,63011.0,63010.0,0.69935755]
[1728799862099,0.005557,63011.0,63010.0,0.68535755]
[1728799862314,0.005557,63011.0,63010.0,0.69935755]
[1728799862734,0.005557,63011.0,63010.0,0.69935901]
[1728799863160,0.005557,63011.0,63010.0,0.74902365]
[1728799866412,0.005557,63011.0,63010.0,0.73710065]
[1728799866615,0.005557,63011.0,63010.0,0.74902331]
[1728799868800,0.005557,63011.0,63010.0,0.86093448]
[1728799872474,0.005557,63011.0,63010.0,0.9086118]
[1728799873745,0.005557,63011.0,63010.0,0.86093448]
[1728799873975,0.005557,63011.0,63010.0,0.9086118]